Workbook

Sheet 报价汇总
A1: 施维雅市场服务报价单
A4: 项目名称: | B4: 2017/18 2nd Cycle Meeting | D4: 供应商名称: | F4: 伯乐仕（北京）国际商业策划有限公司
A5: 预计完成日期: | B5: 2018, Mar 28th | D5: 供应商联系电话:
A6: 项目地点： | B6: Su Zhou | D6: 电子邮箱：
A9: 序号 | B9: 服务类目 | D9: 预算小计 | E9: 结算小计 | F9: 说明
A10: 1 | B10: 创意设计 | D10: =Creative创意设计!H54 -> 109524 | E10: =Creative创意设计!L54 -> 96924
A11: 2 | B11: 搭建制作 | D11: =Event搭建制作!I231 -> 2000432 | E11: =Event搭建制作!M231 -> 2005302.8
A12: 3 | B12: Video视频 | D12: =Video视频!G67 -> 249230 | E12: =Video视频!K67 -> 264730
B13: 不含税总计 | D13: =SUM(D10:D12) -> 2359186 | E13: =E10+E11+E12 -> 2366956.8
A15: 增值税金额小计(CNY): | D15: =D13*0.06 -> 141551.16 | E15: =E13*0.06 -> 142017.408 | F15: 施维雅只接受6%的增值税专用税,其他税费请含进单价中
A16: 含税总计(CNY): | C16: 含税总计(CNY) | D16: =D13+D15 -> 2500737.16 | E16: =E13+E15 -> 2508974.208
A17: 优惠后含税总计(CNY): | C17: 含税总计(CNY) | D17: =D16-30000 -> 2470737.16 | E17: =E16-30000 -> 2478974.208 | F17: 整体优惠30000元
A19: 备注： | B19: 其他项费用总计： | D19: 47000 | F19: 施维雅采购部内部使用，请勿修改内部公式
A21: 说明:
A22: 1.此报价模板内有公式，各项服务小计都自动来自于各类目的明细表，请不要擅自修改；
A23: 2.此报价模板为报价单首页，报价时请在分项明细页填写分项合计需与首页一致；

Sheet Sheet1 (hidden)
A2: Creative | F2: Event&Production | K2: Video Production
A3: 求和项:总价 | F3: 求和项:总价 | K3: 行标签 | L3: 求和项:总价 Subtotal
A4: 大会环节 | B4: 类别 Category | C4: 汇总 | F4: 大会环节 | G4: 类别 | H4: 项目 Item | I4: 汇总 | K4: Opening video (plenary session)（大会开场视频） | L4: 0
A5: Closing ceremony | B5: 主形象设计 | C5: 0 | F5: Team Building | G5: 人员 | H5: 人员费用 | K5: Post-event video - Closing ceremony（闭幕式现场花絮视频） | L5: 0
A6: For all sessions | B6: 微信相关 | C6: 0 | F6: (空白) | G6: AV设备租赁 | H6: Camera（摄像器材） | I6: 0 | K6: Post-event video - Gala dinner（晚宴现场花絮视频） | L6: 0
A7: Gala dinner | B7: 主形象设计 | C7: 0 | H7: 灯光设备租赁 | I7: 0 | K7: Post-event video - Opening cermony（大会现场花絮剪辑视频） | L7: 0
A8: Plenary session | B8: 主形象设计 | C8: 0 | H8: 视频设备租赁 | I8: 0 | K8: Post-event video - Team building（拓展活动现场花絮视频） | L8: 0
A9: Team Building | B9: 主形象设计 | C9: 0 | H9: 音频设备租赁 | I9: 0 | K9: Top Sales Video（销售明星视频） | L9: 0
A10: (空白) | B10: 其他 | C10: 0 | G10: 差旅费用 | H10: 差旅费用 | I10: 0 | K10: Warm-up Video(大会暖场视频) | L10: 0
B11: 图片 | C11: 0 | G11: 搭建 | H11: 搭建 | I11: 0 | K11: 其他 | L11: 0
B12: 完稿 | C12: 0 | G12: 道具/礼品 | H12: 道具 | K12: 总计 | L12: 0
B13: 延展设计 | C13: 0 | H13: 礼品
A14: 总计 | C14: 0 | G14: 其他 | H14: 其他 | I14: 0
G15: 人员 | H15: 人员费用 | I15: 0
G16: 运输费用 | H16: 物料运输费用 | I16: 0
G17: 制作 | H17: KT板 | I17: 0
H18: X架 | I18: 0
H19: 横幅 | I19: 0
H20: 讲台前板 | I20: 0
H21: 热转印布拉网展架 | I21: 0
H22: 提示牌 | I22: 0
H23: 写真画面 | I23: 0
H24: 易拉宝 | I24: 0
F25: 总计 | I25: 0

Sheet Creative创意设计
A1: 施维雅报价明细-创意和设计
A4: Currency币种:CNY人民币
A5: 说明：
A6: * | B6: 施维雅只接受6%的增值税,其他税费请一律含进单价
A7: * | B7: 如有任何修改或添加行，请用红色字体显示
A8: * | B8: 请不要删除行
A9: * | B9: 所有单价都不含增值税
F11: 具体项目预算 Quotation | J11: 具体项目结算 Quotation
A12: 类别 Category | B12: 项目 Item | C12: 内容描述 Description | D12: 大会环节 | E12: 收费单位 Unit | F12: 单价 Unit Price | G12: 数量 Unit | H12: 总价 Subtotal | I12: 是否第三方费用 ?（Y/N) | J12: 结算单价 Unit Price | K12: 结算数量 Unit | L12: 结算总价 Subtotal | M12: 是否第三方费用 ?（Y/N) | N12: 人员职务 Profile | O12: Cost/ Day | P12: 人工天 days | Q12: 备注
A13: 主形象设计 | B13: KV | C13: 整体活动等形象的整体全新创意；特指从无到有 | D13: Plenary session | E13: 个 | F13: 1000 | G13: 1 | H13: =F13*G13 -> 1000 | I13: N | J13: 1000 | K13: 1 | L13: =J13*K13 -> 1000 | M13: N
A14: 主形象设计 | B14: Slogan/Theme | C14: 整体活动等形象的整体全新创意；特指从无到有 | D14: Plenary session | E14: 个 | F14: 500 | G14: 1 | H14: =F14*G14 -> 500 | I14: N | J14: 500 | K14: 1 | L14: =J14*K14 -> 500 | M14: N
A15: 主形象设计 | B15: KV | C15: 整体活动等形象的整体全新创意；特指从无到有 | D15: Gala dinner | E15: 个 | F15: 1000 | G15: 1 | H15: 1000 | I15: N | J15: 1000 | K15: 1 | L15: 0 | M15: N | Q15: 减少项 | R15: 调整
A16: 主形象设计 | B16: Slogan/Theme | C16: 整体活动等形象的整体全新创意；特指从无到有 | D16: Gala dinner | E16: 个 | F16: 500 | G16: 1 | H16: 500 | I16: N | J16: 500 | K16: 1 | L16: 0 | M16: N | Q16: 减少项 | R16: 调整
A17: 主形象设计 | B17: KV | C17: 整体活动等形象的整体全新创意；特指从无到有 | D17: Team Building | E17: 个 | F17: 1000 | G17: 1 | H17: 1000 | I17: N | J17: 1000 | K17: 1 | L17: 0 | M17: N | Q17: 减少项 | R17: 调整
A18: 主形象设计 | B18: Slogan/Theme | C18: 整体活动等形象的整体全新创意；特指从无到有 | D18: Team Building | E18: 个 | F18: 500 | G18: 1 | H18: 500 | I18: N | J18: 500 | K18: 1 | L18: 0 | M18: N | Q18: 减少项 | R18: 调整
A19: 主形象设计 | B19: KV | C19: 整体活动等形象的整体全新创意；特指从无到有 | D19: Team Building | E19: 个 | F19: 1000 | G19: 1 | H19: 1000 | I19: N | J19: 1000 | K19: 0 | L19: 0 | M19: N | Q19: 减少项
A20: 主形象设计 | B20: Slogan/Theme | C20: 整体活动等形象的整体全新创意；特指从无到有 | D20: Team Building | E20: 个 | F20: 500 | G20: 1 | H20: 500 | I20: N | J20: 500 | K20: 0 | L20: 0 | M20: N | Q20: 减少项
A21: 主形象设计 | B21: 项目策划及文案撰写费 | C21: 整个项目活动策划创意、环节设计，包含活动流程设计及项目涉及到的所有文案类撰写 | D21: Plenary session | E21: 个 | F21: 1000 | G21: 1 | H21: =F21*G21 -> 1000 | I21: N | J21: 1000 | K21: 1 | L21: 1000 | M21: N
A22: 主形象设计 | B22: 项目策划及文案撰写费 | C22: 整个项目活动策划创意、环节设计，包含活动流程设计及项目涉及到的所有文案类撰写 | D22: Gala dinner | E22: 个 | F22: 1000 | G22: 1 | H22: 1000 | I22: N | J22: 500 | K22: 1 | L22: 500 | M22: N | Q22: 此项特别优惠 | R22: 调整
A23: 主形象设计 | B23: 项目策划及文案撰写费 | C23: 整个项目活动策划创意、环节设计，包含活动流程设计及项目涉及到的所有文案类撰写 | D23: Team Building | E23: 个 | F23: 1000 | G23: 1 | H23: 1000 | I23: N | J23: 1000 | K23: 1 | L23: 1000 | M23: N
A24: 主形象设计 | B24: 项目策划及文案撰写费 | C24: 整个项目活动策划创意、环节设计，包含活动流程设计及项目涉及到的所有文案类撰写 | D24: Team Building | E24: 个 | F24: 1000 | G24: 1 | H24: 1000 | I24: N | J24: 1000 | K24: 1 | L24: 1000 | M24: N
A25: 延展设计 | B25: 会场背景板设计 | C25: 与KV设计不同的情况下才另行收费 | E25: 个 | H25: 0 | L25: 0
A26: 延展设计 | B26: 展板设计 | C26: 展板不分材质和类型，包含易拉宝、X型展架、KT板等设计；每项目只支付一个设计，不分规格 | D26: Team Building | E26: 个 | F26: 200 | G26: 1 | H26: 200 | I26: N | J26: 200 | K26: 1 | L26: 200 | M26: N
A27: 延展设计 | B27: 会议邀请函设计 | D27: Plenary session | E27: 个 | F27: 500 | G27: 1 | H27: 500 | I27: N | J27: 500 | K27: 1 | L27: 500 | M27: N
A28: 延展设计 | B28: 海报设计 | D28: Team Building | E28: 个 | F28: 200 | G28: 8 | H28: 1600 | I28: N | J28: 100 | K28: 12 | L28: 0 | M28: N | Q28: 此项特别优惠 | R28: 调整
A29: 延展设计 | B29: 桌卡三面 | C29: 每项目只支付一个设计，不分规格 | D29: Plenary session | E29: 个 | F29: 600 | G29: 1 | H29: 600 | I29: N | J29: 600 | K29: 1 | L29: 600 | M29: N
A30: 延展设计 | B30: 桌卡 | C30: 晚宴主桌领导桌卡 | D30: Plenary session | E30: 个 | F30: 200 | G30: 1 | H30: 200 | I30: N | J30: 200 | K30: 0 | L30: 0 | M30: N | Q30: 减少项
A31: 延展设计 | B31: 横幅 | C31: 如果只涉及会议名称和logo,应免设计费 | E31: 个 | H31: 0 | I31: N | L31: 0 | M31: N
A32: 延展设计 | B32: PPT模板设计 | C32: 如果只涉及会议名称和logo,应免设计费 | D32: Plenary session | E32: 套 | F32: 300 | G32: 2 | H32: 600 | I32: N | J32: 300 | K32: 2 | L32: 600 | M32: N
A33: 设计 | B33: PPT制作 | C33: keynote | D33: Plenary session | E33: 套 | F33: 10000 | G33: 4 | H33: 40000 | I33: Y | J33: 10000 | K33: 3 | L33: 30000 | M33: Y | Q33: 减少项
A34: 3D设计 | B34: 会议舞台设计 | C34: 整体设计 | D34: Plenary session | E34: 套 | F34: 5000 | G34: 1 | H34: =F34*G34 -> 5000 | I34: N | J34: 5000 | K34: 1 | L34: 5000 | M34: N
A35: 3D设计 | B35: 晚宴舞台设计 | C35: 整体设计 | D35: Gala dinner | E35: 套 | F35: 5000 | G35: 1 | H35: 5000 | I35: N | J35: 5000 | K35: 1 | L35: 5000 | M35: N
A36: 图片 | B36: 图片租赁 | E36: 幅 | H36: 0 | I36: N | L36: 0 | M36: N
A37: 图片 | B37: 漫画/插画 （手绘） | C37: 手绘卡通形象，例如应用在患教手册中的；游戏场景设计中的等 | E37: 个 | H37: 0 | I37: N | L37: 0 | M37: N
A38: 完稿 | B38: 4K/8K | C38: 幻灯片除外 | E38: 页 | H38: 0 | I38: N | L38: 0 | M38: N
A39: 完稿 | B39: 16K/32K | C39: 幻灯片除外 | E39: 页 | H39: 0 | I39: N | L39: 0 | M39: N
A40: 完稿 | B40: 2K/易拉宝/拉网展架/背景板 | D40: Team Building | E40: 个 | F40: 200 | G40: 1 | H40: 200 | I40: N | J40: 200 | K40: 1 | L40: 200 | M40: N
A41: 完稿 | B41: 大型写真喷绘 | C41: 最高不超10个小时 | E41: 个 | H41: 0 | I41: N | L41: 0 | M41: N
A42: 完稿 | B42: 图表描图 | C42: 扫描需要图片的费用 | E42: 个 | H42: 0 | I42: N | L42: 0 | M42: N
A43: 微信相关 | B43: 数据维护、录入 | D43: For all sessions | E43: 小时 | F43: 80 | G43: 48 | H43: 3840 | I43: Y | J43: 80 | K43: 48 | L43: 3840 | M43: Y
A44: 微信相关 | B44: 微信页面设计\编辑 | D44: For all sessions | E44: 页/page | F44: 2000 | G44: 6 | H44: 12000 | I44: Y | J44: 2000 | K44: 6 | L44: 12000 | M44: Y
A45: 微信相关 | B45: 流程管理、平台运行维护 | D45: For all sessions | E45: 小时 | F45: 50 | G45: 480 | H45: =G45*F45 -> 24000 | I45: Y | J45: 50 | K45: 480 | L45: =K45*J45 -> 24000 | M45: Y
A46: 微信相关 | B46: 微信视频生成及运营 | D46: For all sessions | E46: 项 | F46: 1000 | G46: 3 | H46: =G46*F46 -> 3000 | I46: N | J46: 1000 | K46: 3 | L46: =K46*J46 -> 3000 | M46: N
H47: =G47*F47 -> 0 | L47: =K47*J47 -> 0
H48: =G48*F48 -> 0 | L48: =K48*J48 -> 0
H49: =G49*F49 -> 0 | L49: =K49*J49 -> 0
G50: 创意和设计部分总计(不含服务费和税费): | H50: =SUM(H13:H49) -> 106740 | K50: 创意和设计部分总计(不含服务费和税费): | L50: =SUM(L13:L49) -> 89940
G51: 其他项费用总计： | H51: =SUM(H45:H49) -> 27000 | K51: 其他项费用总计： | L51: =SUM(L45:L49) -> 27000
G52: 第三方费用小计 Total 3rd party cost: | H52: =H45+H43 -> 27840 | K52: 第三方费用小计 Total 3rd party cost: | L52: =L45+L43+L44+L33 -> 69840
A53: 服务费 Service Fee | C53: 市场营销公司垫付的零星第三方支出，需要收取在实际发生基础上收取服务费的部分。请注意需要付款时提供第三方发票作为支持文件。 | G53: 0.1 | H53: =H52*G53 -> 2784 | K53: 0.1 | L53: =L52*K53 -> 6984
G54: 不含税总计: | H54: =H53+H50 -> 109524 | K54: 不含税总计: | L54: =L53+L50 -> 96924
F55: 税金 Tax | G55: 0.06 | H55: =H54*0.06 -> 6571.44 | J55: 税金 Tax | K55: 0.06 | L55: =L54*0.06 -> 5815.44

Sheet Event搭建制作
A3: 施维雅报价明细-制作搭建
A6: Currency币种:CNY人民币
A7: 说明：
A8: * | B8: 施维雅只接受6%的增值税,其他税费请一律含进单价
A9: * | B9: 如有任何修改或添加行，请用红色字体显示
A10: * | B10: 请不要删除行
A11: * | B11: 所有单价都不含增值税
G13: 具体项目预算 Quotation | K13: 具体项目结算 Quotation
A14: 类别 | B14: 项目 Item | C14: 规格 Specification | D14: 内容描述 Description | E14: 大会环节 | F14: 收费单位 Unit | G14: 单价 Unit Price | H14: 数量 Unit | I14: 总价 Subtotal | J14: 是否第三方费用?（Y/N) | K14: 单价 Unit Price | L14: 数量 Unit | M14: 总价 Subtotal | N14: 是否第三方费用?（Y/N) | O14: 备注
A15: 制作 | B15: 热转印布拉网展架 | C15: 3×3 M | D15: 展架外包装为塑料硬质包装箱；展架材质为挤压无缝铝合金管，塑料模块为ABS工程塑料；画面材质为1440DPI高光相纸喷绘，背覆PVC片。 | F15: 个 | I15: =G15*H15 -> 0 | J15: Y | M15: =K15*L15 -> 0 | N15: Y
A16: 制作 | B16: 热转印布拉网展架 | C16: 3×4 M | D16: 展架外包装为塑料硬质包装箱；展架材质为挤压无缝铝合金管，塑料模块为ABS工程塑料；画面材质为1441DPI高光相纸喷绘，背覆PVC片。 | F16: 个 | I16: 0 | J16: Y | M16: 0 | N16: Y
A17: 制作 | B17: 热转印布拉网展架 | C17: 2x3 M | D17: 展架外包装为塑料硬质包装箱；展架材质为挤压无缝铝合金管，塑料模块为ABS工程塑料；画面材质为1442DPI高光相纸喷绘，背覆PVC片。 | F17: 个 | I17: 0 | J17: Y | M17: 0 | N17: Y
A18: 制作 | B18: 易拉宝 | C18: 2x0.8 M | D18: 大会入场指示3个+小程序二维码扫描4个 | E18: For all sessions | F18: 个 | I18: 0 | J18: Y | K18: 200 | L18: 7 | M18: =K18*L18 -> 1400 | N18: Y | O18: 增加项
A19: 制作 | B19: 易拉宝 | C19: 2×0.85 M | D19: 铝合金3节杆65mm弹簧内芯，高光相纸220克厚覆亚膜（1.3米以上宽度用双支撑杆），全铝合金底脚 | F19: 个 | I19: 0 | J19: Y | M19: =K19*L19 -> 0 | N19: Y
A20: 制作 | B20: 易拉宝 | C20: 2×1.2 M | D20: 铝合金3节杆65mm弹簧内芯，高光相纸220克厚覆亚膜（1.4米以上宽度用双支撑杆），全铝合金底脚 | F20: 个 | I20: 0 | J20: Y | M20: 0 | N20: Y
A21: 制作 | B21: 易拉宝 | C21: 2×1.5 M | D21: 铝合金3节杆65mm弹簧内芯，高光相纸220克厚覆亚膜（1.5米以上宽度用双支撑杆），全铝合金底脚 | F21: 个 | I21: 0 | J21: Y | M21: 0 | N21: Y
A22: 制作 | B22: X架 | C22: 1.6×0.6 M | D22: 展架底部材质为无缝钢管，上部为碳铅杆；画面为背胶裱pvc片 | F22: 个 | I22: 0 | J22: Y | M22: 0 | N22: Y
A23: 制作 | B23: X架 | C23: 1.8×0.8M | D23: 展架底部材质为无缝钢管，上部为碳铅杆；画面为背胶裱pvc片 | F23: 个 | I23: 0 | J23: Y | M23: 0 | N23: Y
A24: 制作 | B24: X架 | C24: 2×1.2 M | D24: 展架底部材质为无缝钢管，上部为碳铅杆；画面为背胶裱pvc片 | F24: 个 | I24: 0 | J24: Y | M24: 0 | N24: Y
A25: 制作 | B25: 横幅 | C25: 单色，写真布 | D25: 设计免费 | E25: Team Building | F25: 5米 | I25: 0 | J25: Y | K25: 200 | L25: 4 | M25: =K25*L25 -> 800 | N25: Y | O25: 增加项
A26: 制作 | B26: 横幅 | C26: 4色 喷绘布 | F26: 8至10米 | I26: 0 | J26: Y | M26: 0 | N26: Y
A27: 制作 | B27: 写真画面 | C27: 单面 | F27: 平米 | I27: 0 | J27: Y | M27: 0 | N27: Y
A28: 制作 | B28: 手举牌 | C28: 双面 | D28: 40*60cm雪弗板+手举杆；zone1-zone6+HQ office | E28: Plenary session | F28: 个 | I28: 0 | J28: Y | K28: 100 | L28: 7 | M28: 700 | N28: Y | O28: 增加项
A29: 制作 | B29: 提示牌 | C29: 写真 KT板 | D29: 亚展板；1440DPI写真喷绘 | F29: 个 | I29: 0 | J29: Y | M29: 0 | N29: Y
A30: 制作 | B30: 讲台前板 | C30: 写真 KT板 | D30: 亚展板；1440DPI写真喷绘 | F30: 个 | I30: 0 | J30: Y | M30: 0 | N30: Y
A31: 制作 | B31: 手卡 | C31: 主持人手卡 | E31: For all sessions | F31: 张 | G31: 6 | H31: 0 | I31: 0 | J31: Y | K31: 6 | L31: 0 | M31: 0 | N31: Y
A32: 制作 | B32: 席位卡 | C32: 可转移背胶 | E32: Plenary session | F32: 个 | G32: 5 | H32: 1600 | I32: 8000 | J32: Y | K32: 5 | L32: 1000 | M32: 5000 | N32: Y | O32: 减少项
A33: 制作 | B33: 台卡 | C33: 铜版纸 | D33: 铜板纸 三面印刷 | E33: Gala dinner | F33: 张 | G33: 10 | H33: 0 | I33: 0 | J33: Y | K33: 10 | L33: 0 | M33: 0 | N33: Y
A34: 制作 | B34: 奖杯 | C34: Top Sales | D34: Top Sales奖杯 | E34: Plenary session | F34: 个 | G34: 500 | H34: 2 | I34: 1000 | J34: Y | K34: 500 | L34: 3 | M34: 1500 | N34: Y | O34: 增加项：沈仕讯、吴延水、仇庆树
A35: 制作 | B35: 指示牌 | C35: 指示KT板 | D35: 40*60cm双面KT板+三角支架 | E35: Gala dinner | F35: 个 | I35: =G35*H35 -> 0 | J35: Y | K35: 100 | L35: 3 | M35: =K35*L35 -> 300 | N35: Y | O35: 增加项：晚宴场地洗手间指示
A36: 搭建 | B36: 搭建 | C36: 场地找平板 | D36: 18mm夹板找平场地保护；36000mm*20000mm | E36: Plenary session | F36: 平米 | G36: 80 | H36: 720 | I36: =H36*G36 -> 57600 | J36: Y | K36: 80 | L36: 720 | M36: =L36*K36 -> 57600 | N36: Y
A37: 搭建 | B37: 搭建 | C37: 地毯 | D37: 地毯；36000mm*20000mm | E37: Plenary session | F37: 平米 | G37: 35 | H37: 726 | I37: 25410 | J37: Y | K37: 35 | L37: 726 | M37: 25410 | N37: Y
A38: 搭建 | B38: 搭建 | C38: 全场黑丝绒遮挡 | D38: 黑丝绒加工穿不锈钢管；1100000mm*15000mmh | E38: Plenary session | F38: 平米 | G38: 70 | H38: 1650 | I38: 115500 | J38: Y | K38: 70 | L38: 1650 | M38: 115500 | N38: Y
A39: 搭建 | B39: 搭建 | C39: 天花板遮挡 | D39: 暗场处理；黑底可转移背胶（展馆室顶部高空作业） | E39: Plenary session | F39: 平米 | G39: 30 | H39: 960 | I39: 28800 | J39: Y | K39: 40 | L39: 960 | M39: 38400 | N39: Y | O39: 增加项：遮光布改为黑底可转移背胶
A40: 搭建 | B40: 搭建 | C40: 投影幕布 | D40: 8*4.5M | E40: Plenary session | F40: 平米 | G40: 200 | H40: 36 | I40: 0 | J40: Y | K40: 200 | L40: 36 | M40: 0 | N40: Y
A41: 搭建 | B41: 搭建 | C41: 场馆窗户遮挡 | D41: 暗场处理；黑底遮光布（展馆三楼窗户遮光）：130000mm*55000mmh | E41: Plenary session | F41: 平米 | J41: Y | K41: 30 | L41: 715 | M41: =L41*K41 -> 21450 | N41: Y | O41: 增加项
A42: 搭建 | B42: 搭建 | C42: layer架遮挡 | D42: layer架遮挡，黑色网格布：62000*9000mmh*2 | E42: Plenary session | F42: 平米 | J42: Y | K42: 35 | L42: 111 | M42: =L42*K42 -> 3885 | N42: Y | O42: 增加项
A43: 搭建 | B43: 搭建 | C43: 移动看台 | D43: 租赁看台 | E43: Plenary session | F43: 座 | G43: 160 | H43: 230 | I43: 36800 | J43: Y | K43: 160 | L43: 180 | M43: =L43*K43 -> 28800 | N43: Y | O43: 减少项
A44: 搭建 | B44: 搭建 | C44: 地屏架 | D44: 钢结构；20000mm*8000mm | E44: Plenary session | F44: 平米 | G44: 160 | H44: 160 | I44: =G44*H44 -> 25600 | J44: Y | K44: 160 | L44: 160 | M44: =K44*L44 -> 25600 | N44: Y
A45: 搭建 | B45: 搭建 | C45: 看台正面画面 | D45: 铁架绷宝丽布；36000mm*18000mm*1000mmh | E45: Plenary session | F45: 平米 | G45: 80 | H45: 108 | I45: =G45*H45 -> 8640 | J45: Y | K45: 80 | L45: 108 | M45: =K45*L45 -> 8640 | N45: Y
A46: 搭建 | B46: 搭建 | C46: 合影画面 | D46: 黑底喷绘画面；约20000mm*50000mm | E46: Plenary session | F46: 平米 | G46: 40 | H46: 800 | I46: =G46*H46 -> 32000 | J46: Y | K46: 12 | L46: 800 | M46: =K46*L46 -> 9600 | N46: Y | O46: 减少项：画面未喷，料已采购
A47: 搭建 | B47: 搭建 | C47: 搭建人员费用 | D47: 舞美搭建-布展搭建人工 | E47: Plenary session | F47: 位 | G47: 300 | H47: 80 | I47: =G47*H47 -> 24000 | J47: Y | K47: 300 | L47: 80 | M47: =K47*L47 -> 24000 | N47: Y
A48: 搭建 | B48: 搭建 | C48: 搭建人员交通 | D48: 舞美搭建-上海布展搭建人工交通 | E48: Plenary session | F48: 趟 | G48: 1000 | H48: 4 | I48: 4000 | J48: Y | K48: 1000 | L48: 4 | M48: 4000 | N48: Y
A49: 搭建 | B49: 搭建 | C49: 搭建物料运输费用 | D49: 舞美搭建-所有物料运输 | E49: Plenary session | F49: 趟 | G49: 2000 | H49: 4 | I49: 8000 | J49: Y | K49: 2000 | L49: 4 | M49: 8000 | N49: Y
A50: 搭建 | B50: 搭建 | C50: 主舞台 | D50: 专用车台板；6000mm*6000mm*1000mmh*2组 | E50: Gala dinner | F50: 平米 | G50: 160 | H50: 72 | I50: 11520 | J50: Y | K50: 160 | L50: 72 | M50: 11520 | N50: Y
A51: 搭建 | B51: 搭建 | C51: 找平板 | D51: 18mm夹板找平板；6000mm*6000mm*2组 | E51: Gala dinner | F51: 平米 | G51: 80 | H51: 72 | I51: 5760 | J51: Y | K51: 80 | L51: 72 | M51: 5760 | N51: Y
A52: 搭建 | B52: 搭建 | C52: 舞台围边 | D52: 19mm夹板围边；6000mm*6000mm*2组 | E52: Gala dinner | F52: 平米 | G52: 120 | H52: 48 | I52: 5760 | J52: Y | K52: 120 | L52: 48 | M52: 5760 | N52: Y
A53: 搭建 | B53: 搭建 | C53: 地毯 | D53: 展览地毯；6000mm*6000mm*2组 | E53: Gala dinner | F53: 平米 | G53: 35 | H53: 128 | I53: 4480 | J53: Y | K53: 35 | L53: 128 | M53: 4480 | N53: Y
A54: 搭建 | B54: 搭建 | C54: 舞台踏步 | D54: 夹板展览地毯亚克力发光灯带；230mm*6000mm*1000mmh | E54: Gala dinner | F54: 平米 | G54: 350 | H54: 35 | I54: 12250 | J54: Y | K54: 350 | L54: 35 | M54: 12250 | N54: Y
A55: 搭建 | B55: 搭建 | C55: 吊挂LED灯管 | D55: LED编程变色灯管 | E55: Gala dinner | F55: 只 | G55: 200 | H55: 100 | I55: 20000 | J55: Y | K55: 200 | L55: 100 | M55: 20000 | N55: Y
A56: 搭建 | B56: 搭建 | C56: 舞池灯带 | D56: 地台6mmh，亚克力灯带；舞池区域：10000mm*15000mm | E56: Gala dinner | F56: 平米 | G56: 200 | H56: 0 | I56: 0 | J56: Y | K56: 200 | L56: 0 | M56: 0 | N56: Y
A57: 搭建 | B57: 搭建 | C57: 人形立牌 | D57: 雪弗板雕刻油漆写真 | E57: Gala dinner | F57: 个 | G57: 900 | H57: 12 | I57: =G57*H57 -> 10800 | J57: Y | K57: 900 | L57: 0 | M57: 0 | N57: Y | O57: 减少项
A58: 搭建 | B58: 搭建 | C58: 过线槽 | D58: 异形木结构包地毯：600*2400mm*23条 | E58: Gala dinner | F58: 平米 | J58: Y | K58: 100 | L58: 33 | M58: =K58*L58 -> 3300 | N58: Y
A59: 搭建 | B59: 搭建 | C59: 发光贴 | D59: 背胶反光：500*65000mm | E59: Gala dinner | F59: 平米 | J59: Y | K59: 90 | L59: 32 | M59: =K59*L59 -> 2880 | N59: Y
A60: 搭建 | B60: 搭建 | C60: 电线 | D60: 连接电线 | E60: Gala dinner | F60: 延米 | J60: Y | K60: 400 | L60: 4 | M60: =K60*L60 -> 1600 | N60: Y
A61: 搭建 | B61: 搭建 | C61: 搭建人员费用 | D61: 舞美搭建-布展搭建人工 | E61: Gala dinner | F61: 位 | G61: 300 | H61: 40 | I61: 12000 | J61: Y | K61: 300 | L61: 40 | M61: 12000 | N61: Y
A62: 搭建 | B62: 搭建 | C62: 搭建人员交通 | D62: 舞美搭建-上海布展搭建人工交通 | E62: Gala dinner | F62: 趟 | G62: 1000 | H62: 2 | I62: 2000 | J62: Y | K62: 1000 | L62: 2 | M62: 2000 | N62: Y
A63: 搭建 | B63: 搭建 | C63: 搭建物料运输费用 | D63: 舞美搭建-所有物料运输 | E63: Gala dinner | F63: 趟 | G63: 2000 | H63: 4 | I63: 8000 | J63: Y | K63: 2000 | L63: 4 | M63: 8000 | N63: Y
A64: AV设备租赁 | B64: 视频设备租赁 | C64: 处理器-大屏幕 | D64: Gloshine 560 LED Controller | E64: Plenary session | F64: 台/天 | G64: 1000 | H64: 1 | I64: 1000 | J64: Y | K64: 1000 | L64: 1 | M64: 1000 | N64: Y
A65: AV设备租赁 | B65: 视频设备租赁 | C65: 处理器-高清地砖LED | D65: Gloshine 560 LED Controller | E65: Plenary session | F65: 台/天 | G65: 1000 | H65: 6 | I65: 6000 | J65: Y | K65: 1000 | L65: 6 | M65: 6000 | N65: Y
A66: AV设备租赁 | B66: 视频设备 | C66: LED大屏幕 | D66: Gloshine P3 LED Display (Unit:500mm*500mm )（8000mmX4500mm） | E66: Plenary session | F66: 平米 | G66: 600 | H66: 36 | I66: 21600 | J66: Y | K66: 600 | L66: 36 | M66: 21600 | N66: Y
A67: AV设备租赁 | B67: 视频设备 | C67: LED高清地砖 | D67: Gloshine P4 (Unit:500mm*500mm )（23000mmX8000mm） | E67: Plenary session | F67: 平米 | G67: 500 | H67: 184 | I67: 92000 | J67: Y | K67: 500 | L67: 184 | M67: 92000 | N67: Y
A68: AV设备租赁 | B68: 视频设备租赁 | C68: 投影仪 | D68: 10000流明 | E68: Plenary session | F68: 台/天 | G68: 10000 | H68: 1 | I68: 0 | J68: Y | K68: 10000 | L68: 1 | M68: 0 | N68: Y
A69: AV设备租赁 | B69: 视频设备 | C69: LED磨砂透明地胶 | D69: LED地屏磨砂地胶（20000mmX8000mm） | E69: Plenary session | F69: 平米 | J69: Y | K69: 90 | L69: 160 | M69: 0 | N69: Y | O69: 增加项：此项优惠
A70: AV设备租赁 | B70: 视频设备租赁 | C70: 液晶电视(55寸全高清) | D70: SHARP LCD-55 | E70: Plenary session | F70: 台/天 | G70: 1000 | H70: 4 | I70: =G70*H70 -> 4000 | J70: Y | K70: 1000 | L70: 2 | M70: =K70*L70 -> 2000 | N70: Y | O70: 减少项
A71: AV设备租赁 | B71: 视频设备租赁 | C71: 视频处理器(HD/SDI） | D71: BARCO EVENT MASTER E2 Video Processor | E71: Plenary session | F71: 台/天 | G71: 30000 | H71: 1 | I71: 30000 | J71: Y | K71: 30000 | L71: 1 | M71: 30000 | N71: Y
A72: AV设备租赁 | B72: 视频设备租赁 | C72: 大型控制台 | D72: BARCO EC-200 EVENT Controller | E72: Plenary session | F72: 个/天 | G72: 10000 | H72: 1 | I72: 10000 | J72: Y | K72: 10000 | L72: 1 | M72: 10000 | N72: Y
A73: AV设备租赁 | B73: 视频设备租赁 | C73: 频率转换器 | D73: BARCO FOLSOM IMAGEPRO-II Converte | E73: Plenary session | F73: 个/天 | G73: 1500 | H73: 1 | I73: 0 | J73: Y | K73: 1500 | L73: 1 | M73: 0 | N73: Y
A74: AV设备租赁 | B74: 视频设备租赁 | C74: 翻页提示器套装 (带PC-AS4遥控器) | D74: D’SAN PC-433 PerfectCue Light Kit | E74: Plenary session | F74: 套/天 | G74: 800 | H74: 2 | I74: 1600 | J74: Y | K74: 800 | L74: 2 | M74: =K74*L74 -> 1600 | N74: Y
A75: AV设备租赁 | B75: 视频设备租赁 | C75: 处理器 | D75: DATATON WATCHOUT Video Processo | E75: Plenary session | F75: 个/天 | G75: 1000 | H75: 4 | I75: 4000 | J75: Y | K75: 1000 | L75: 4 | M75: 4000 | N75: Y
A76: AV设备租赁 | B76: 视频设备租赁 | C76: 解密狗(5.0版本) | D76: DATATON WATCHOUT License Key | E76: Plenary session | F76: 个/天 | G76: 2000 | H76: 4 | I76: 8000 | J76: Y | K76: 2000 | L76: 4 | M76: 8000 | N76: Y
A77: AV设备租赁 | B77: 视频设备租赁 | C77: 网络交换机 | D77: NETGEAR JGS524 Network Switch（千兆，24路） | E77: Plenary session | F77: 个/天 | G77: 1000 | H77: 2 | I77: =G77*H77 -> 2000 | J77: Y | K77: 1000 | L77: 2 | M77: 2000 | N77: Y
A78: AV设备租赁 | B78: 视频设备租赁 | C78: 光纤延长器 | D78: EXTRON DVI104 Tx/Rx DVI Fiber Optic Extender | E78: Plenary session | F78: 个/天 | G78: 800 | H78: 6 | I78: 4800 | J78: Y | K78: 800 | L78: 6 | M78: 4800 | N78: Y
A79: AV设备租赁 | B79: 视频设备租赁 | C79: 光缆 | D79: KORNING LC-LC Fiber Cable(多模，双工，100m) | E79: Plenary session | F79: 个/天 | G79: 500 | H79: 6 | I79: 3000 | J79: Y | K79: 500 | L79: 6 | M79: 3000 | N79: Y
A80: AV设备租赁 | B80: 视频设备租赁 | C80: 监视器 | D80: PHILIPS Monitor (液晶 ，20") | E80: Plenary session | F80: 台/天 | G80: 500 | H80: 3 | I80: 1500 | J80: Y | K80: 500 | L80: 3 | M80: 1500 | N80: Y
A81: AV设备租赁 | B81: 视频设备租赁 | C81: Mac Pro | D81: （六核，Intel Xeon E5 处理器） | E81: Plenary session | F81: 台/天 | G81: 500 | H81: 1 | I81: 500 | J81: Y | K81: 500 | L81: 1 | M81: 500 | N81: Y
A82: AV设备租赁 | B82: 视频设备租赁 | C82: 导播台 | E82: Plenary session | F82: 台/天 | G82: 5000 | H82: 1 | I82: 0 | J82: Y | K82: 5000 | L82: 1 | M82: 0 | N82: Y
A83: AV设备租赁 | B83: 视频设备租赁 | C83: 笔记本电脑 | D83: Laptop(APPLE , MACBOOK) | E83: Plenary session | F83: 台/天 | G83: 500 | H83: 2 | I83: =G83*H83 -> 1000 | J83: Y | K83: 500 | L83: 2 | M83: =K83*L83 -> 1000 | N83: Y
A84: AV设备租赁 | B84: 视频设备租赁 | C84: 笔记本电脑 | D84: Laptop | E84: Plenary session | F84: 台/天 | G84: 500 | H84: 2 | I84: 1000 | J84: Y | K84: 500 | L84: 2 | M84: 1000 | N84: Y
A85: AV设备租赁 | B85: 视频设备租赁 | C85: Layer架 | D85: Layer Truss；2m*2m*10m*2组、2m*12m*6m | E85: Plenary session | F85: 组 | G85: 1000 | H85: 6 | I85: 6000 | J85: Y | K85: 1000 | L85: 6 | M85: 6000 | N85: Y
A86: AV设备租赁 | B86: 视频设备 | C86: LED大屏幕 | D86: Gloshine P3 LED Display LED大屏幕(Unit:500mm*500mm )（ Total:5000mm*3000mm*4） | E86: Gala dinner | F86: 平米 | G86: 600 | H86: 60 | I86: =G86*H86 -> 36000 | J86: Y | K86: 600 | L86: 60 | M86: 36000 | N86: Y
A87: AV设备租赁 | B87: 视频设备租赁 | C87: 视频处理器(HD/SDI） | D87: BARCO FOLSOM ENCORE EVP-05 Video Processor | E87: Gala dinner | F87: 台/天 | G87: 10000 | H87: 1 | I87: 10000 | J87: Y | K87: 10000 | L87: 1 | M87: 10000 | N87: Y
A88: AV设备租赁 | B88: 视频设备租赁 | C88: 小型控制台 | D88: BARCO FOLSOM ENCORE Small Controller | E88: Gala dinner | F88: 个/天 | G88: 7000 | H88: 1 | I88: 7000 | J88: Y | K88: 7000 | L88: 1 | M88: 7000 | N88: Y
A89: AV设备租赁 | B89: 视频设备租赁 | C89: 频率转换器 | D89: BARCO FOLSOM IMAGEPRO-II Converte | E89: Gala dinner | F89: 个/天 | G89: 1500 | H89: 1 | I89: 0 | J89: Y | K89: 1500 | L89: 1 | M89: 0 | N89: Y
A90: AV设备租赁 | B90: 视频设备租赁 | C90: 翻页提示器套装 (带PC-AS4遥控器) | D90: D’SAN PC-433 PerfectCue Light Kit | E90: Gala dinner | F90: 套/天 | G90: 800 | H90: 1 | I90: 800 | J90: Y | K90: 800 | L90: 1 | M90: =K90*L90 -> 800 | N90: Y
A91: AV设备租赁 | B91: 视频设备租赁 | C91: 等离子(55" ，全高清) | D91: PANASONIC TH-55PZ700C PDP | E91: Gala dinner | F91: 台/天 | G91: 1000 | H91: 2 | I91: 0 | J91: Y | K91: 1000 | L91: 2 | M91: 0 | N91: Y
A92: AV设备租赁 | B92: 视频设备租赁 | C92: 处理器 | D92: Gloshine 540 LED Controller | E92: Gala dinner | F92: 个/天 | G92: 1000 | H92: 4 | I92: 4000 | J92: Y | K92: 1000 | L92: 4 | M92: =K92*L92 -> 4000 | N92: Y
A93: AV设备租赁 | B93: 视频设备租赁 | C93: 光纤延长器 | D93: EXTRON DVI104 Tx/Rx DVI Fiber Optic Extender | E93: Gala dinner | F93: 个/天 | G93: 800 | H93: 2 | I93: =G93*H93 -> 1600 | J93: Y | K93: 800 | L93: 2 | M93: 1600 | N93: Y
A94: AV设备租赁 | B94: 视频设备租赁 | C94: 光缆 | D94: KORNING LC-LC Fiber Cable(多模，双工，100m) | E94: Gala dinner | F94: 个/天 | G94: 500 | H94: 2 | I94: 1000 | J94: Y | K94: 500 | L94: 2 | M94: 1000 | N94: Y
A95: AV设备租赁 | B95: 视频设备租赁 | C95: 监视器 | D95: PHILIPS Monitor (液晶 ，20") | E95: Gala dinner | F95: 台/天 | G95: 500 | H95: 2 | I95: 1000 | J95: Y | K95: 500 | L95: 2 | M95: 1000 | N95: Y
A96: AV设备租赁 | B96: 视频设备租赁 | C96: 笔记本电脑 | D96: APPLE , MACBOOK | E96: Gala dinner | F96: 台/天 | G96: 500 | H96: 2 | I96: 1000 | J96: Y | K96: 500 | L96: 2 | M96: 1000 | N96: Y
A97: AV设备租赁 | B97: 音频设备租赁 | C97: 全频音箱（线阵列系列） | D97: d&b Audiotechnik V8 Loudspeaker | E97: Plenary session | F97: 台/天 | G97: 1200 | H97: 24 | I97: 28800 | J97: Y | K97: 1200 | L97: 24 | M97: 28800 | N97: Y
A98: AV设备租赁 | B98: 音频设备租赁 | C98: 全频音箱 | D98: d&b Audiotechnik V12 Loudspeaker | E98: Plenary session | F98: 台/天 | G98: 1000 | H98: 8 | I98: =G98*H98 -> 8000 | J98: Y | K98: 1000 | L98: 8 | M98: =K98*L98 -> 8000 | N98: Y
A99: AV设备租赁 | B99: 音频设备租赁 | C99: 低频音箱 | D99: d&b Audiotechnik V-Sub Subwoofer | E99: Plenary session | F99: 台/天 | G99: 1200 | H99: 6 | I99: 7200 | J99: Y | K99: 1200 | L99: 6 | M99: =K99*L99 -> 7200 | N99: Y
A100: AV设备租赁 | B100: 音频设备租赁 | C100: 低频音箱 | D100: d&b Audiotechnik B22 Subwoofer | E100: Plenary session | F100: 台/天 | G100: 1200 | H100: 4 | I100: =G100*H100 -> 4800 | J100: Y | K100: 1200 | L100: 4 | M100: 4800 | N100: Y
A101: AV设备租赁 | B101: 音频设备租赁 | C101: 全频返送音箱 | D101: d&b Audiotechnik Max2 Loudspeaker | E101: Plenary session | F101: 台/天 | G101: 800 | H101: 12 | I101: 9600 | J101: Y | K101: 800 | L101: 12 | M101: 9600 | N101: Y
A102: AV设备租赁 | B102: 音频设备租赁 | C102: 数字功放 | D102: d&b D40 Digital Power Amplifier | E102: Plenary session | F102: 台/天 | G102: 1000 | H102: 7 | I102: 7000 | J102: Y | K102: 1000 | L102: 7 | M102: 7000 | N102: Y
A103: AV设备租赁 | B103: 音频设备租赁 | C103: 数字调音台 | D103: YAMAHA QL-5 Digital Mixer(32ch) | E103: Plenary session | F103: 台/天 | G103: 4500 | H103: 1 | I103: 4500 | J103: Y | K103: 4500 | L103: 1 | M103: 4500 | N103: Y
A104: AV设备租赁 | B104: 音频设备租赁 | C104: 舒尔UR4D+接收机 | D104: SHURE UR4D+ Dual channel diversity receiver | E104: Plenary session | F104: 台/天 | G104: 400 | H104: 8 | I104: 3200 | J104: Y | K104: 400 | L104: 8 | M104: 3200 | N104: Y
A105: AV设备租赁 | B105: 音频设备租赁 | C105: 无线手持式话筒 | D105: SHURE UR2/Beta 58A Wireless Hand-hold Mic | E105: Plenary session | F105: 个/天 | G105: 200 | H105: 6 | I105: 1200 | J105: Y | K105: 200 | L105: 6 | M105: 1200 | N105: Y
A106: AV设备租赁 | B106: 音频设备租赁 | C106: 头戴式话筒 | D106: SHURE UR1/WBH53 Headworn Microphone | E106: Plenary session | F106: 个/天 | G106: 200 | H106: 10 | I106: =G106*H106 -> 2000 | J106: Y | K106: 200 | L106: 10 | M106: 2000 | N106: Y
A107: AV设备租赁 | B107: 音频设备租赁 | C107: U段天线放大传输系统 | D107: SHURE UA845E UHF Antenna Distribution System | E107: Plenary session | F107: 台/天 | G107: 700 | H107: 2 | I107: 1400 | J107: Y | K107: 700 | L107: 2 | M107: 1400 | N107: Y
A108: AV设备租赁 | B108: 音频设备租赁 | C108: 有线对讲系统主机 | D108: PRDUCTION INTERCOM MS-200 Master Station | E108: Plenary session | F108: 套 | G108: 1500 | H108: 1 | I108: 1500 | J108: Y | K108: 1500 | L108: 1 | M108: 1500 | N108: Y
A109: AV设备租赁 | B109: 音频设备租赁 | C109: 有线对讲系统接收点 | D109: PRDUCTION INTERCOM Receiver | E109: Plenary session | F109: 个/天 | G109: 150 | H109: 6 | I109: 900 | J109: Y | K109: 150 | L109: 6 | M109: 900 | N109: Y
A110: AV设备租赁 | B110: 音频设备租赁 | C110: 接口箱 | D110: YAMAHA RIO32-24 | E110: Plenary session | F110: 个/天 | G110: 1000 | H110: 1 | I110: 1000 | J110: Y | K110: 1000 | L110: 1 | M110: 1000 | N110: Y
A111: AV设备租赁 | B111: 音频设备租赁 | C111: 无线对讲系统基站 | D111: CLEARCOM Master Station | E111: Plenary session | F111: 个 | G111: 1500 | H111: 1 | I111: 1500 | J111: Y | K111: 1500 | L111: 1 | M111: 1500 | N111: Y
A112: AV设备租赁 | B112: 音频设备租赁 | C112: 无线对讲系统接收点 | D112: CLEARCOM Receiver | E112: Plenary session | F112: 个/天 | G112: 500 | H112: 4 | I112: 2000 | J112: Y | K112: 500 | L112: 4 | M112: 2000 | N112: Y
A113: AV设备租赁 | B113: 音频设备租赁 | C113: DI盒 | D113: RADIAL Pro48 Active DI Box | E113: Plenary session | F113: 个/天 | G113: 300 | H113: 4 | I113: 1200 | J113: Y | K113: 300 | L113: 4 | M113: 1200 | N113: Y
A114: AV设备租赁 | B114: 音频设备租赁 | C114: Layer架 | D114: Layer Truss；2组，1组2m x6m | E114: Plenary session | F114: 组 | G114: 1000 | H114: 2 | I114: 2000 | J114: Y | K114: 1000 | L114: 2 | M114: 2000 | N114: Y
A115: AV设备租赁 | B115: 灯光设备租赁 | C115: 图案电脑灯（切片） | D115: Moving lights,1500w Spot-Performance | E115: Plenary session | F115: 个/天 | G115: 350 | H115: 24 | I115: 8400 | J115: Y | K115: 350 | L115: 24 | M115: 8400 | N115: Y
A116: AV设备租赁 | B116: 灯光设备租赁 | C116: 光束电脑灯 | D116: JOLLY X-15R-Beam | E116: Plenary session | F116: 个/天 | G116: 400 | H116: 8 | I116: 3200 | J116: Y | K116: 400 | L116: 8 | M116: 3200 | N116: Y
A117: AV设备租赁 | B117: 灯光设备租赁 | C117: LED变色灯 | D117: TERBLY OVAL 48D Light | E117: Plenary session | F117: 个/天 | G117: 150 | H117: 20 | I117: 3000 | J117: Y | K117: 150 | L117: 20 | M117: 3000 | N117: Y
A118: AV设备租赁 | B118: 灯光设备租赁 | C118: 灯光版块 | D118: EXPLORER Ovation LED Moving Heads Light | E118: Plenary session | F118: 个/天 | G118: 400 | H118: 20 | I118: 8000 | J118: Y | K118: 400 | L118: 20 | M118: 8000 | N118: Y
A119: AV设备租赁 | B119: 灯光设备租赁 | C119: 四头灯 | D119: 4 Bulb Flood Light | E119: Plenary session | F119: 个/天 | G119: 200 | H119: 12 | I119: 2400 | J119: Y | K119: 200 | L119: 12 | M119: 2400 | N119: Y
A120: AV设备租赁 | B120: 灯光设备租赁 | C120: 调光台 | D120: MA grandMA2 Light Console | E120: Plenary session | F120: 台/天 | G120: 8000 | H120: 1 | I120: 8000 | J120: Y | K120: 8000 | L120: 1 | M120: 8000 | N120: Y
A121: AV设备租赁 | B121: 灯光设备租赁 | C121: 网络信号处理器 | D121: MA grandMA NSP | E121: Plenary session | F121: 台/天 | G121: 8000 | H121: 1 | I121: =G121*H121 -> 8000 | J121: Y | K121: 8000 | L121: 1 | M121: 8000 | N121: Y
A122: AV设备租赁 | B122: 灯光设备租赁 | C122: 信号放大器 | D122: Lighting DA | E122: Plenary session | F122: 台/天 | G122: 150 | H122: 2 | I122: 300 | J122: Y | K122: 150 | L122: 2 | M122: 300 | N122: Y
A123: AV设备租赁 | B123: 灯光设备租赁 | C123: 灯光架 | D123: Truss (300mmx400mm) | E123: Plenary session | F123: 米 | G123: 80 | H123: 100 | I123: 8000 | J123: Y | K123: 80 | L123: 100 | M123: 8000 | N123: Y
A124: AV设备租赁 | B124: 灯光设备租赁 | C124: 追光灯 | D124: AURORA HMI-2500 Follow Spot | E124: Plenary session | F124: 个/天 | G124: 800 | H124: 2 | I124: 1600 | J124: Y | K124: 800 | L124: 2 | M124: 1600 | N124: Y
A125: AV设备租赁 | B125: 灯光设备租赁 | C125: 控制器 | D125: COLUMBUS MCKINNON CMC-800-B Controller ( 8路,带RC-8遥控) | E125: Plenary session | F125: 台/天 | G125: 1200 | H125: 2 | I125: 0 | J125: Y | K125: 1200 | L125: 2 | M125: 0 | N125: Y
A126: AV设备租赁 | B126: 灯光设备租赁 | C126: 手动葫芦 | D126: XIONGYING HSZ-80B Manual Hoist | E126: Plenary session | F126: 台/天 | G126: 200 | H126: 10 | I126: 2000 | J126: Y | K126: 200 | L126: 10 | M126: =K126*L126 -> 2000 | N126: Y
A127: AV设备租赁 | B127: 视频设备租赁 | C127: Layer架 | D127: Layer Truss；2m*2m*10m*3组、2m*24m*6m | E127: Plenary session | F127: 组 | G127: 1000 | H127: 8 | I127: 8000 | J127: Y | K127: 1000 | L127: 8 | M127: 8000 | N127: Y
A128: AV设备租赁 | B128: 灯光设备租赁 | C128: 灯光版块 | D128: Power Distributor Cabinet 配电箱(三相,200A) | E128: Plenary session | F128: 台/天 | G128: 2000 | H128: 2 | I128: 4000 | J128: Y | K128: 2000 | L128: 2 | M128: 4000 | N128: Y
A129: AV设备租赁 | B129: 搭建人员 | C129: 布展工作人员 | E129: Plenary session | F129: 人次 | G129: 300 | H129: 60 | I129: 18000 | J129: Y | K129: 300 | L129: 60 | M129: 18000 | N129: Y
A130: AV设备租赁 | B130: 人员交通 | C130: AV部分人员交通 | E130: Plenary session | F130: 项 | G130: 8000 | H130: 2 | I130: 16000 | J130: Y | K130: 8000 | L130: 2 | M130: 16000 | N130: Y
A131: AV设备租赁 | B131: 运输费 | C131: 物料往返运输 | E131: Plenary session | F131: 趟 | G131: 2000 | H131: 16 | I131: 32000 | J131: Y | K131: 2000 | L131: 16 | M131: 32000 | N131: Y
A132: AV设备租赁 | B132: 音频设备租赁 | C132: 低频音箱 | D132: d&b Audiotechnik V-Sub Subwoofer | E132: Gala dinner | F132: 台/天 | G132: 1200 | H132: 8 | I132: =G132*H132 -> 9600 | J132: Y | K132: 1200 | L132: 8 | M132: 9600 | N132: Y
A133: AV设备租赁 | B133: 音频设备租赁 | C133: 全频音箱 | D133: d&b Audiotechnik Y7p Loudspeaker | E133: Gala dinner | F133: 台/天 | G133: 800 | H133: 16 | I133: 12800 | J133: Y | K133: 800 | L133: 16 | M133: 12800 | N133: Y
A134: AV设备租赁 | B134: 音频设备租赁 | C134: 全频返送音箱 | D134: d&b Audiotechnik Max2 Loudspeaker | E134: Gala dinner | F134: 台/天 | G134: 800 | H134: 6 | I134: 4800 | J134: Y | K134: 800 | L134: 6 | M134: 4800 | N134: Y
A135: AV设备租赁 | B135: 音频设备租赁 | C135: 数字功放 | D135: d&b D40 Digital Power Amplifier | E135: Gala dinner | F135: 台/天 | G135: 1000 | H135: 4 | I135: 4000 | J135: Y | K135: 1000 | L135: 4 | M135: 4000 | N135: Y
A136: AV设备租赁 | B136: 音频设备租赁 | C136: 数字调音台 | D136: YAMAHA QL-5 Digital Mixer(32ch) | E136: Gala dinner | F136: 台/天 | G136: 4500 | H136: 1 | I136: 4500 | J136: Y | K136: 4500 | L136: 1 | M136: 4500 | N136: Y
A137: AV设备租赁 | B137: 音频设备租赁 | C137: 舒尔UR4D+接收机 | D137: SHURE UR4D+ Dual channel diversity receiver | E137: Gala dinner | F137: 台/天 | G137: 400 | H137: 9 | I137: 3600 | J137: Y | K137: 400 | L137: 9 | M137: 3600 | N137: Y
A138: AV设备租赁 | B138: 音频设备租赁 | C138: 无线手持式话筒 | D138: SHURE UR2/Beta 58A Wireless Hand-hold Mic | E138: Gala dinner | F138: 个/天 | G138: 200 | H138: 8 | I138: 1600 | J138: Y | K138: 200 | L138: 8 | M138: 1600 | N138: Y
A139: AV设备租赁 | B139: 音频设备租赁 | C139: 头戴式话筒 | D139: SHURE UR1/WBH53 Headworn Microphone | E139: Gala dinner | F139: 个/天 | G139: 200 | H139: 2 | I139: 400 | J139: Y | K139: 200 | L139: 2 | M139: 400 | N139: Y
A140: AV设备租赁 | B140: 音频设备租赁 | C140: 个人监听系统(无线) | D140: SHURE PSM 600 Personal Monitor Systems | E140: Gala dinner | F140: 个/天 | G140: 500 | H140: 2 | I140: 1000 | J140: Y | K140: 500 | L140: 2 | M140: 1000 | N140: Y
A141: AV设备租赁 | B141: 音频设备租赁 | C141: U段天线放大传输系统 | D141: SHURE UA845E UHF Antenna Distribution System | E141: Gala dinner | F141: 台/天 | G141: 700 | H141: 2 | I141: 1400 | J141: Y | K141: 700 | L141: 2 | M141: 1400 | N141: Y
A142: AV设备租赁 | B142: 音频设备租赁 | C142: 有线对讲系统主机 | D142: PRDUCTION INTERCOM MS-200 Master Station | E142: Gala dinner | F142: 套 | G142: 1500 | H142: 1 | I142: 1500 | J142: Y | K142: 1500 | L142: 1 | M142: 1500 | N142: Y
A143: AV设备租赁 | B143: 音频设备租赁 | C143: 有线对讲系统接收点 | D143: PRDUCTION INTERCOM Receiver | E143: Gala dinner | F143: 个/天 | G143: 150 | H143: 6 | I143: 900 | J143: Y | K143: 150 | L143: 6 | M143: 900 | N143: Y
A144: AV设备租赁 | B144: 音频设备租赁 | C144: 接口箱 | D144: YAMAHA RIO32-24 | E144: Gala dinner | F144: 个/天 | G144: 4000 | H144: 1 | I144: 4000 | J144: Y | K144: 4000 | L144: 1 | M144: 4000 | N144: Y
A145: AV设备租赁 | B145: 音频设备租赁 | C145: 无线对讲系统基站 | D145: CLEARCOM Master Station | E145: Gala dinner | F145: 个 | G145: 1500 | H145: 1 | I145: 1500 | J145: Y | K145: 1500 | L145: 1 | M145: 1500 | N145: Y
A146: AV设备租赁 | B146: 音频设备租赁 | C146: 无线对讲系统接收点 | D146: CLEARCOM Receiver | E146: Gala dinner | F146: 个/天 | G146: 500 | H146: 6 | I146: 3000 | J146: Y | K146: 500 | L146: 6 | M146: 3000 | N146: Y
A147: AV设备租赁 | B147: 音频设备租赁 | C147: DI盒 | D147: RADIAL Pro48 Active DI Box | E147: Gala dinner | F147: 个/天 | G147: 300 | H147: 4 | I147: 1200 | J147: Y | K147: 300 | L147: 4 | M147: 1200 | N147: Y
A148: AV设备租赁 | B148: 音频设备租赁 | C148: Layer架 | D148: Layer Truss；2组，1组2m x6m | E148: Gala dinner | F148: 组 | G148: 1000 | H148: 2 | I148: 0 | J148: Y | K148: 1000 | L148: 2 | M148: 0 | N148: Y
A149: AV设备租赁 | B149: 灯光设备租赁 | C149: 图案电脑灯（切片） | D149: Moving lights,1500w Spot-Performance | E149: Gala dinner | F149: 个/天 | G149: 350 | H149: 16 | I149: 5600 | J149: Y | K149: 350 | L149: 16 | M149: =K149*L149 -> 5600 | N149: Y
A150: AV设备租赁 | B150: 灯光设备租赁 | C150: 电脑图案灯 | D150: FINE ART | E150: Gala dinner | F150: 个/天 | G150: 350 | H150: 24 | I150: =G150*H150 -> 8400 | J150: Y | K150: 350 | L150: 24 | M150: 8400 | N150: Y
A151: AV设备租赁 | B151: 灯光设备租赁 | C151: 光束电脑灯 | D151: Terbly 230Beam - 300w | E151: Gala dinner | F151: 个/天 | G151: 350 | H151: 40 | I151: 14000 | J151: Y | K151: 350 | L151: 40 | M151: 14000 | N151: Y
A152: AV设备租赁 | B152: 灯光设备租赁 | C152: LED变色灯 | D152: TERBLY OVAL 48D Light | E152: Gala dinner | F152: 个/天 | G152: 150 | H152: 48 | I152: 7200 | J152: Y | K152: 150 | L152: 48 | M152: 7200 | N152: Y
A153: AV设备租赁 | B153: 灯光设备租赁 | C153: 灯光版块 | D153: EXPLORER Ovation LED Moving Heads Light | E153: Gala dinner | F153: 个/天 | G153: 400 | H153: 48 | I153: 19200 | J153: Y | K153: 400 | L153: 48 | M153: 19200 | N153: Y
A154: AV设备租赁 | B154: 灯光设备租赁 | C154: 面光灯 | D154: ETC PAR LED | E154: Gala dinner | F154: 个/天 | G154: 200 | H154: 24 | I154: =G154*H154 -> 4800 | J154: Y | K154: 200 | L154: 24 | M154: 4800 | N154: Y
A155: AV设备租赁 | B155: 灯光设备租赁 | C155: 四头灯 | D155: 4 Bulb Flood Light | E155: Gala dinner | F155: 个/天 | G155: 200 | H155: 16 | I155: 3200 | J155: Y | K155: 200 | L155: 16 | M155: 3200 | N155: Y
A156: AV设备租赁 | B156: 灯光设备租赁 | C156: 追光打 | D156: AURORA HMI-2500 Follow Spot | E156: Gala dinner | F156: 个/天 | G156: 1500 | H156: 2 | I156: 3000 | J156: Y | K156: 1500 | L156: 2 | M156: 3000 | N156: Y
A157: AV设备租赁 | B157: 灯光设备租赁 | C157: 雾机 | D157: Fog Machine | E157: Gala dinner | F157: 个/天 | G157: 800 | H157: 4 | I157: 3200 | J157: Y | K157: 800 | L157: 4 | M157: 3200 | N157: Y
A158: AV设备租赁 | B158: 灯光设备租赁 | C158: 调光台 | D158: MA grandMA2 Light Console | E158: Gala dinner | F158: 台/天 | G158: 8000 | H158: 1 | I158: =G158*H158 -> 8000 | J158: Y | K158: 8000 | L158: 1 | M158: 8000 | N158: Y
A159: AV设备租赁 | B159: 灯光设备租赁 | C159: 网络信号处理器 | D159: MA grandMA NSP | E159: Gala dinner | F159: 台/天 | G159: 8000 | H159: 1 | I159: 8000 | J159: Y | K159: 8000 | L159: 1 | M159: 8000 | N159: Y
A160: AV设备租赁 | B160: 灯光设备租赁 | C160: 信号放大器 | D160: Lighting DA | E160: Gala dinner | F160: 台/天 | G160: 500 | H160: 6 | I160: 3000 | J160: Y | K160: 500 | L160: 6 | M160: 3000 | N160: Y
A161: AV设备租赁 | B161: 灯光设备租赁 | C161: 灯光架 | D161: Truss 灯光架 (300mmx400mm) | E161: Gala dinner | F161: 米 | G161: 80 | H161: 240 | I161: 19200 | J161: Y | K161: 80 | L161: 240 | M161: 19200 | N161: Y
A162: AV设备租赁 | B162: 灯光设备租赁 | C162: 控制器 | D162: COLUMBUS MCKINNON CMC-800-B Controller 控制器 | E162: Gala dinner | F162: 台/天 | G162: 1500 | H162: 1 | I162: 1500 | J162: Y | K162: 1500 | L162: 1 | M162: 1500 | N162: Y
A163: AV设备租赁 | B163: 灯光设备租赁 | C163: 手动葫芦 | D163: XIONGYING HSZ-80B Manual Hoist | E163: Gala dinner | F163: 台/天 | G163: 200 | H163: 12 | I163: 2400 | J163: Y | K163: 200 | L163: 12 | M163: 2400 | N163: Y
A164: AV设备租赁 | B164: 灯光设备租赁 | C164: 电动葫芦 | D164: COLUMBUS MCKINNON SPC2003 Electric Chain Hoist | E164: Gala dinner | F164: 台/天 | G164: 400 | H164: 6 | I164: 2400 | J164: Y | K164: 400 | L164: 6 | M164: 2400 | N164: Y
A165: AV设备租赁 | B165: 灯光设备租赁 | C165: 灯光版块 | D165: Power Distributor Cabinet 配电箱(三相,200A) | E165: Gala dinner | F165: 台/天 | G165: 700 | H165: 2 | I165: 1400 | J165: Y | K165: 700 | L165: 2 | M165: 1400 | N165: Y
A166: AV设备租赁 | B166: 搭建人员 | C166: 布展工作人员 | E166: Gala dinner | F166: 人次 | G166: 300 | H166: 40 | I166: 12000 | J166: Y | K166: 300 | L166: 40 | M166: 12000 | N166: Y
A167: AV设备租赁 | B167: 人员交通 | C167: AV部分人员交通 | E167: Gala dinner | F167: 人 | G167: 8000 | H167: 2 | I167: 16000 | J167: Y | K167: 8000 | L167: 2 | M167: 16000 | N167: Y
A168: AV设备租赁 | B168: 运输费 | C168: 物料往返运输 | E168: Gala dinner | F168: 趟 | G168: 2000 | H168: 10 | I168: 20000 | J168: Y | K168: 2000 | L168: 10 | M168: 20000 | N168: Y
A169: 夜跑 | B169: 夜跑费用 | C169: 夜跑计数小程序 | D169: 计步程序 | E169: Team Building | F169: 项 | G169: 15000 | H169: 1 | I169: =G169*H169 -> 15000 | J169: Y | K169: 15000 | L169: 1 | M169: 15000 | N169: Y
A170: 夜跑 | B170: 夜跑费用 | C170: 夜跑荧光道具 | D170: 定制logo荧光手环*2000、亚克力发光手环*2000、发光牛角发箍*2000 | E170: Team Building | F170: 项 | G170: 10000 | H170: 1 | I170: 10000 | J170: Y | K170: 10000 | L170: 1 | M170: 10000 | N170: Y
A171: 道具 | B171: 报销 | C171: 区域服装报销 | D171: 晚宴舞蹈服装道具报销 | E171: Gala dinner | F171: 项 | I171: 0 | J171: Y | K171: 8247.5 | L171: 1 | M171: =K171*L171 -> 8247.5 | N171: Y | O171: 增加项 | P171: 调整
A172: 道具 | B172: 报销 | C172: 区域服装报销 | D172: 晚宴舞蹈服装道具报销 | E172: Gala dinner | F172: 项 | I172: =G172*H172 -> 0 | J172: Y | K172: 636 | L172: 1 | M172: =K172*L172 -> 636 | N172: Y | O172: 增加项：拍摄化妆费用报销 | P172: 调整
A173: 道具 | B173: 租赁 | C173: 大会道具 | D173: 大鼓 | E173: Plenary session | F173: 项 | G173: 500 | H173: 10 | I173: =G173*H173 -> 5000 | J173: Y | K173: 500 | L173: 11 | M173: 5500 | N173: Y | O173: 增加项：9位老板+2个专业鼓手
A174: 道具 | B174: 租赁 | C174: 大会道具 | D174: 动感单车 | E174: Plenary session | F174: 项 | G174: 500 | H174: 12 | I174: 6000 | J174: Y | K174: 500 | L174: 6 | M174: 3000 | N174: Y | O174: 减少项
A175: 道具 | B175: 采购 | C175: 大会道具 | D175: 锦鲤及定制鱼缸 | E175: Plenary session | F175: 项 | G175: 10000 | H175: 1 | I175: 10000 | J175: Y | K175: 10000 | L175: 0 | M175: 0 | N175: Y | O175: 减少项
A176: 道具 | B176: 采购 | C176: 晚宴道具 | D176: 荧光戒指、帽子、发光字、拍立得、LED灯球、吉他、架子鼓等 | E176: Gala dinner | F176: 项 | G176: 10000 | H176: 1 | I176: =G176*H176 -> 10000 | J176: Y | K176: 10000 | L176: 1 | M176: 10000 | N176: Y
A177: 道具 | B177: 采购 | C177: 足球赛篮球赛奖品 | D177: 足球8人+篮球5人苏州碧螺春茶叶 半斤装 | E177: Team Building | F177: 个 | G177: 300 | H177: 13 | I177: 3900 | J177: Y | K177: 300 | L177: 0 | M177: 0 | N177: Y | O177: 减少项
A178: 道具 | B178: 租赁 | C178: 足球赛租赁足球 | D178: 6个足球 | E178: Team Building | F178: 个 | J178: Y | K178: 100 | L178: 6 | M178: 0 | N178: Y | O178: 增加项 | P178: 调整
A179: 道具 | B179: 采购 | C179: 足球背心 | D179: 15件足球背心 | E179: Team Building | F179: 个 | J179: Y | K179: 20 | L179: 15 | M179: =K179*L179 -> 300 | N179: Y | O179: 增加项：足球训练背心
A180: 道具 | B180: 采购 | C180: 音箱 | D180: 3个音箱 | E180: Team Building | F180: 个 | J180: Y | K180: 699 | L180: 3 | M180: =K180*L180 -> 2097 | N180: Y | O180: 增加项：啦啦队使用 | P180: 调整
A181: 人员 | B181: 人员费用 | C181: 大会外请讲者 | D181: 赵汉唐 | E181: Plenary session | F181: 人/天 | G181: 230000 | H181: 1 | I181: 230000 | J181: Y | K181: 230000 | L181: 1 | M181: 230000 | N181: Y
A182: 人员 | B182: 人员费用 | C182: 大会击鼓演员 | D182: 专业击鼓表演人员 | E182: Plenary session | F182: 人/天 | G182: 2500 | H182: 2 | I182: 5000 | J182: Y | K182: 2500 | L182: 2 | M182: 5000 | N182: Y
A183: 人员 | B183: 人员费用 | C183: 晚宴节目演员 | D183: 6女+2男；不含差旅 | E183: Gala dinner | F183: 人/天 | G183: 3500 | H183: 8 | I183: 28000 | J183: Y | K183: 3500 | L183: 8 | M183: 28000 | N183: Y | O183: 开场表演
A184: 人员 | B184: 人员费用 | C184: 晚宴节目演员 | D184: 6女+2男；不含差旅 | E184: Gala dinner | F184: 人/天 | G184: 2000 | H184: 8 | I184: 16000 | J184: Y | K184: 2000 | L184: 8 | M184: 16000 | N184: Y | O184: 串场表演
A185: 人员 | B185: 人员费用 | C185: 晚宴节目演员 | D185: 外籍乐队*4人（女生主唱-high light乐队） | E185: Gala dinner | F185: 人/天 | G185: 5000 | H185: 4 | I185: 20000 | J185: Y | K185: 5000 | L185: 4 | M185: 20000 | N185: Y
A186: 人员 | B186: 人员费用 | C186: 晚宴节目演员 | D186: 外籍职业DJ | E186: Gala dinner | F186: 人/天 | G186: 8000 | H186: 1 | I186: =G186*H186 -> 8000 | J186: Y | K186: 8000 | L186: 1 | M186: 8000 | N186: Y
A187: 人员 | B187: 人员费用 | C187: 舞蹈老师编舞 | D187: 编舞并录制视频；统一动作 | E187: Plenary session | F187: 人/次 | G187: 5000 | H187: 2 | I187: 10000 | J187: Y | K187: 5000 | L187: 2 | M187: 10000 | N187: Y
A188: 人员 | B188: 人员费用 | C188: 现场教学 | D188: 1.5小时每次 | E188: Plenary session | F188: 人/天 | G188: 2000 | H188: 2 | I188: 4000 | J188: Y | K188: 2000 | L188: 2 | M188: 4000 | N188: Y
A189: 人员 | B189: 人员费用 | C189: 苏州现场指导 | D189: 编舞老师现场指导（25日、26日） | E189: Plenary session | F189: 人/天 | G189: 3000 | H189: 2 | I189: 6000 | J189: Y | K189: 3000 | L189: 2 | M189: 6000 | N189: Y
A190: 人员 | B190: 人员费用 | C190: 裁判 | D190: 篮球赛裁判 | E190: Team Building | F190: 人/天 | G190: 1500 | H190: 2 | I190: 3000 | J190: Y | K190: 1500 | L190: 2 | M190: 3000 | N190: Y
A191: 人员 | B191: 人员费用 | C191: 裁判 | D191: 足球赛裁判（1个主裁2个边裁1个第四荷官*2） | E191: Team Building | F191: 人/天 | G191: 1500 | H191: 8 | I191: 12000 | J191: Y | K191: 1500 | L191: 8 | M191: 12000 | N191: Y
A192: 人员 | B192: 人员费用 | C192: MC | D192: 主持人 | E192: Gala dinner | F192: 人/天 | G192: 8000 | H192: 0 | I192: 0 | J192: Y | K192: 8000 | L192: 0 | M192: 0 | N192: Y
A193: 人员 | B193: 人员费用 | C193: MC服装 | D193: 主持人服装 | E193: Gala dinner | F193: 人/天 | G193: 1000 | H193: 0 | I193: 0 | J193: Y | K193: 1000 | L193: 0 | M193: 0 | N193: Y
A194: 人员 | B194: 人员费用 | C194: 客户总监 | D194: 此项收费适用于活动和项目执行中的人工费用，包括沟通，咨询及现场支持，不适用于创意、设计以及医学支持类工作 | E194: For all sessions | F194: 人/天 | G194: 1000 | H194: 10 | I194: =G194*H194 -> 10000 | J194: N | K194: 1000 | L194: 10 | M194: 10000 | N194: N | O194: 2人*5天（23、24、25、26、27日）
A195: 人员 | B195: 人员费用 | C195: 客户经理 | D195: 此项收费适用于活动和项目执行中的人工费用，包括沟通，咨询及现场支持，不适用于创意、设计以及医学支持类工作 | E195: For all sessions | F195: 人/天 | G195: 800 | H195: 10 | I195: 8000 | J195: N | K195: 800 | L195: 10 | M195: 8000 | N195: N | O195: 2人*5天
A196: 人员 | B196: 人员费用 | C196: 客户主管 | D196: 此项收费适用于活动和项目执行中的人工费用，包括沟通，咨询及现场支持，不适用于创意、设计以及医学支持类工作 | E196: For all sessions | F196: 人/天 | G196: 500 | H196: 10 | I196: 5000 | J196: N | K196: 500 | L196: 10 | M196: 5000 | N196: N | O196: 2人*5天
A197: 人员 | B197: 人员费用 | C197: 项目经理 | D197: 此项收费适用于活动和项目执行中的人工费用，包括沟通，咨询及现场支持，不适用于创意、设计以及医学支持类工作 | E197: For all sessions | F197: 人/天 | G197: 500 | H197: 10 | I197: 5000 | J197: N | K197: 500 | L197: 10 | M197: 5000 | N197: N | O197: 2人*5天
A198: 人员 | B198: 人员费用 | C198: 活动现场支持 | E198: For all sessions | F198: 人/天 | G198: 500 | H198: 30 | I198: 15000 | J198: Y | K198: 500 | L198: 20 | M198: 10000 | N198: Y | O198: 10人*2天；减少项
A199: 人员 | B199: 人员费用 | C199: keynote设计师 | D199: 活动现场支持 | E199: Plenary session | F199: 人/天 | J199: Y | K199: 1000 | L199: 3 | M199: =K199*L199 -> 3000 | N199: Y | O199: 1人*3天
A200: 人员 | B200: 人员费用 | C200: 摄像师 | D200: 北京上海杭州三地拍摄；资深摄像师+助理 | E200: Plenary session | F200: 人/天 | J200: Y | K200: 5000 | L200: 3 | M200: =K200*L200 -> 15000 | N200: Y | O200: 增加项
A201: 人员 | B201: 人员费用 | C201: 摄像师 | D201: 3人 | E201: Plenary session | F201: 人/天 | G201: 3000 | H201: 3 | I201: 9000 | J201: Y | K201: 3000 | L201: 3 | M201: 9000 | N201: Y
A202: 人员 | B202: 人员费用 | C202: 摄影师 | D202: 3人 | E202: Plenary session | F202: 人/天 | G202: 5000 | H202: 3 | I202: 15000 | J202: Y | K202: 5000 | L202: 3 | M202: 15000 | N202: Y
A203: 人员 | B203: 人员费用 | C203: 摄像师 | D203: 2人 | E203: Gala dinner | F203: 人/天 | G203: 3000 | H203: 2 | I203: =G203*H203 -> 6000 | J203: Y | K203: 3000 | L203: 2 | M203: 6000 | N203: Y
A204: 人员 | B204: 人员费用 | C204: 摄影师 | D204: 3人 | E204: Gala dinner | F204: 人/天 | G204: 5000 | H204: 3 | I204: 15000 | J204: Y | K204: 5000 | L204: 3 | M204: 15000 | N204: Y
A205: 人员 | B205: 人员费用 | C205: 摄像师 | D205: 2人；足球赛、篮球赛和夜跑各1人 | E205: Team Building | F205: 人/天 | G205: 3000 | H205: 2 | I205: =G205*H205 -> 6000 | J205: Y | K205: 3000 | L205: 2 | M205: 6000 | N205: Y
... 27 more rows

Sheet Video视频
A1: 施维雅报价明细-视频制作
A4: Currency币种:CNY人民币
A5: 说明：
A6: * | B6: 施维雅只接受6%的增值税,其他税费请一律含进单价
A7: * | B7: 如有任何修改或添加行，请用红色字体显示
A8: * | B8: 请不要删除行
A9: * | B9: 所有单价都不含增值税
E11: 具体项目预算 Quotation | I11: 具体项目预算 Quotation
A12: 视频名称 | B12: 项目 Item | C12: 内容描述 Description | D12: 收费单位 Unit | E12: 单价 Unit Price | F12: 数量 Unit | G12: 总价 Subtotal | H12: 是否第三方费用? （Y/N) | I12: 单价 Unit Price | J12: 数量 Unit | K12: 总价 Subtotal | L12: 是否第三方费用? （Y/N) | M12: 备注
A13: opening Video(大会开场视频 - 地屏) | B13: 二维动画制作（Flash） | D13: 秒/Sec | E13: 300 | F13: 0 | G13: =E13*F13 -> 0 | H13: Y | I13: 300 | J13: 0 | K13: =I13*J13 -> 0 | L13: Y
A14: opening Video(大会开场视频 - 地屏) | B14: 三维动画制作 | D14: 秒/Sec | E14: 500 | F14: 0 | G14: 0 | H14: Y | I14: 500 | J14: 0 | K14: 0 | L14: Y
A15: opening Video(大会开场视频 - 地屏) | B15: 动态幻灯片 | D15: 秒/Sec | E15: 200 | F15: 0 | G15: 0 | H15: Y | I15: 200 | J15: 0 | K15: 0 | L15: Y
A16: opening Video(大会开场视频 - 地屏) | B16: 脚本大纲 | C16: 视频主线，大纲发展 | D16: 个/pc | E16: 3000 | F16: 1 | G16: 3000 | H16: N | I16: 3000 | J16: 1 | K16: 3000 | L16: N
A17: opening Video(大会开场视频 - 地屏) | B17: 脚本编辑 | C17: 活动或拍摄活动前期的脚本编写 | D17: 小时/hour | E17: 500 | F17: 8 | G17: 4000 | H17: N | I17: 500 | J17: 8 | K17: 4000 | L17: N
A18: opening Video(大会开场视频 - 地屏) | B18: 视频素材收集 | C18: 包含拍摄前采访、图片检索、对施维雅提供的素材进行整理等 | D18: 小时/hour | E18: 150 | F18: 10 | G18: 1500 | H18: N | I18: 150 | J18: 10 | K18: 1500 | L18: N
A19: opening Video(大会开场视频 - 地屏) | B19: 特效 | C19: 转场特效，字幕特效，logo特效等 | D19: 个/pc | E19: 800 | F19: 6 | G19: 4800 | H19: Y | I19: 800 | J19: 6 | K19: 4800 | L19: Y
A20: opening Video(大会开场视频 - 地屏) | B20: 配乐 | C20: 为视频提供背景音乐(不包括版权音乐的版权费) | D20: 个/pc | E20: 3000 | F20: 1 | G20: 3000 | H20: Y | I20: 3000 | J20: 1 | K20: 3000 | L20: Y
A21: opening Video(大会开场视频 - 地屏) | B21: 字幕 | C21: 按照剧本为视频添加字幕(不包括特效字幕) | D21: 分钟 | E21: 200 | F21: 0 | G21: 0 | H21: Y | I21: 200 | J21: 0 | K21: 0 | L21: Y
A22: opening Video(大会开场视频 - 地屏) | B22: 配音 | C22: 按照剧本进行配音，专业级配音演员 | D22: 分钟 | E22: 500 | F22: 0 | G22: 0 | H22: Y | I22: 500 | J22: 0 | K22: 0 | L22: Y
A23: opening Video(大会开场视频 - 地屏) | B23: 三维特效 | D23: 秒 | E23: 400 | F23: 180 | G23: 72000 | H23: Y | I23: 400 | J23: 180 | K23: 72000 | L23: Y
A24: opening Video(大会开场视频 - 地屏) | B24: 修图 Patch up | C24: 对实拍的人物照片进行修补 | D24: 张/pc | E24: 150 | F24: 0 | G24: 0 | H24: Y | I24: 150 | J24: 0 | K24: 0 | L24: Y
A25: opening Video(大会开场视频 - 地屏) | B25: 后期加工及内容剪辑 Filming Editing | C25: 视频剪辑，指对母带进行剪辑，按工作时间收取 | D25: 小时/hour | E25: 500 | F25: 12 | G25: 6000 | H25: Y | I25: 500 | J25: 12 | K25: 6000 | L25: Y
A26: opening Video(大会开场视频 - 地屏) | B26: 多媒体的合成 | C26: 包含配音、配乐、字幕的合成；收费标准指一套成品 | D26: 个/pc | E26: 200 | F26: 6 | G26: 1200 | H26: Y | I26: 200 | J26: 6 | K26: 1200 | L26: Y
A27: 动感单车屏幕互动视频 | B27: 二维动画制作（Flash） | D27: 秒/Sec | F27: 0 | G27: 0 | H27: Y | J27: 0 | K27: 0 | L27: Y
A28: 动感单车屏幕互动视频 | B28: 三维动画制作 | D28: 秒/Sec | F28: 0 | G28: 0 | H28: Y | J28: 0 | K28: 0 | L28: Y
A29: 动感单车屏幕互动视频 | B29: 动态幻灯片 | D29: 秒/Sec | F29: 0 | G29: 0 | H29: Y | J29: 0 | K29: 0 | L29: Y
A30: 动感单车屏幕互动视频 | B30: 脚本大纲 | C30: 视频主线，大纲发展 | D30: 个/pc | E30: 3000 | F30: 1 | G30: 3000 | H30: N | I30: 3000 | J30: 1 | K30: 3000 | L30: N
A31: 动感单车屏幕互动视频 | B31: 脚本编辑 | C31: 活动或拍摄活动前期的脚本编写 | D31: 小时/hour | E31: 500 | F31: 6 | G31: 3000 | H31: N | I31: 500 | J31: 6 | K31: 3000 | L31: N
A32: 动感单车屏幕互动视频 | B32: 视频素材收集 | C32: 包含拍摄前采访、图片检索、对施维雅提供的素材进行整理等 | D32: 小时/hour | E32: 150 | F32: 8 | G32: 1200 | H32: N | I32: 150 | J32: 8 | K32: 1200 | L32: N
A33: 动感单车屏幕互动视频 | B33: 特效 | C33: 转场特效，字幕特效，logo特效等 | D33: 个/pc | E33: 800 | F33: 6 | G33: 4800 | H33: Y | I33: 800 | J33: 6 | K33: 4800 | L33: Y
A34: 动感单车屏幕互动视频 | B34: 配乐 | C34: 为视频提供背景音乐(不包括版权音乐的版权费) | D34: 个/pc | E34: 2000 | F34: 1 | G34: 2000 | H34: Y | I34: 2000 | J34: 1 | K34: 2000 | L34: Y
A35: 动感单车屏幕互动视频 | B35: 字幕 | C35: 按照剧本为视频添加字幕(不包括特效字幕) | D35: 分钟 | F35: 0 | G35: 0 | H35: Y | J35: 0 | K35: 0 | L35: Y
A36: 动感单车屏幕互动视频 | B36: 配音 | C36: 按照剧本进行配音，专业级配音演员 | D36: 分钟 | F36: 0 | G36: 0 | H36: Y | J36: 0 | K36: 0 | L36: Y
A37: 动感单车屏幕互动视频 | B37: 三维特效 | D37: 秒 | E37: 400 | F37: 100 | G37: 40000 | H37: Y | I37: 400 | J37: 100 | K37: 40000 | L37: Y
A38: 动感单车屏幕互动视频 | B38: 修图 Patch up | C38: 对实拍的人物照片进行修补 | D38: 张/pc | F38: 0 | G38: 0 | H38: Y | J38: 0 | K38: 0 | L38: Y
A39: 动感单车屏幕互动视频 | B39: 后期加工及内容剪辑 Filming Editing | C39: 视频剪辑，指对母带进行剪辑，按工作时间收取 | D39: 小时/hour | F39: 0 | G39: 0 | H39: Y | J39: 0 | K39: 0 | L39: Y
A40: 动感单车屏幕互动视频 | B40: 多媒体的合成 | C40: 包含配音、配乐、字幕的合成；收费标准指一套成品 | D40: 个/pc | E40: 200 | F40: 20 | G40: 4000 | H40: Y | I40: 200 | J40: 20 | K40: 4000 | L40: Y
A41: 孔明灯结束视频 | B41: 二维动画制作（Flash） | D41: 秒/Sec | F41: 0 | G41: 0 | H41: Y | J41: 0 | K41: 0 | L41: Y
A42: 孔明灯结束视频 | B42: 三维动画制作 | D42: 秒/Sec | F42: 0 | G42: 0 | H42: Y | J42: 0 | K42: 0 | L42: Y
A43: 孔明灯结束视频 | B43: 动态幻灯片 | D43: 秒/Sec | F43: 0 | G43: 0 | H43: Y | J43: 0 | K43: 0 | L43: Y
A44: Top Sales 倒鱼视频 | B44: 视频制作 | D44: 小时/hour | G44: 0 | H44: Y | I44: 500 | J44: 10 | K44: =I44*J44 -> 5000 | L44: Y | M44: 增加项：视频制作后取消
A45: Top Sales 搜索视频 | B45: 脚本大纲 | C45: 视频主线，大纲发展 | D45: 个/pc | E45: 3000 | F45: 1 | G45: =E45*F45 -> 3000 | H45: N | I45: 3000 | J45: 1 | K45: 3000 | L45: N
A46: Top Sales 搜索视频 | B46: 脚本编辑 | C46: 活动或拍摄活动前期的脚本编写 | D46: 小时/hour | E46: 500 | F46: 4 | G46: 2000 | H46: N | I46: 500 | J46: 4 | K46: 2000 | L46: N
A47: Top Sales 搜索视频 | B47: 视频素材收集 | C47: 包含拍摄前采访、图片检索、对施维雅提供的素材进行整理等 | D47: 小时/hour | E47: 150 | F47: 6 | G47: 900 | H47: N | I47: 150 | J47: 6 | K47: 900 | L47: N
A48: Top Sales 搜索视频 | B48: 特效 | C48: 转场特效，字幕特效，logo特效等 | D48: 个/pc | E48: 800 | F48: 18 | G48: 14400 | H48: Y | I48: 800 | J48: 18 | K48: 14400 | L48: Y
A49: Top Sales 搜索视频 | B49: 配乐 | C49: 为视频提供背景音乐(不包括版权音乐的版权费) | D49: 个/pc | E49: 2000 | F49: 1 | G49: 2000 | H49: Y | I49: 2000 | J49: 1 | K49: 2000 | L49: Y
A50: Top Sales 搜索视频 | B50: 字幕 | C50: 按照剧本为视频添加字幕(不包括特效字幕) | D50: 分钟 | F50: 0 | G50: 0 | H50: Y | J50: 0 | K50: 0 | L50: Y
A51: Top Sales 搜索视频 | B51: 配音 | C51: 按照剧本进行配音，专业级配音演员 | D51: 分钟 | F51: 0 | G51: 0 | H51: Y | J51: 0 | K51: 0 | L51: Y
A52: Top Sales 搜索视频 | B52: 三维特效 | D52: 秒 | E52: 400 | F52: 60 | G52: 24000 | H52: Y | I52: 400 | J52: 60 | K52: 24000 | L52: Y
A53: Top Sales 搜索视频 | B53: 修图 Patch up | C53: 对实拍的人物照片进行修补 | D53: 张/pc | F53: 0 | G53: 0 | H53: Y | J53: 0 | K53: 0 | L53: Y
A54: Top Sales 搜索视频 | B54: 后期加工及内容剪辑 Filming Editing | C54: 视频剪辑，指对母带进行剪辑，按工作时间收取 | D54: 小时/hour | F54: 0 | G54: 0 | H54: Y | J54: 0 | K54: 0 | L54: Y
A55: Top Sales 搜索视频 | B55: 多媒体的合成 | C55: 包含配音、配乐、字幕的合成；收费标准指一套成品 | D55: 个/pc | E55: 200 | F55: 16 | G55: 3200 | H55: Y | I55: 200 | J55: 16 | K55: 3200 | L55: Y
A56: Post-event video - Gala dinner （晚宴TB现场花絮视频） | B56: 配乐 | C56: 为视频提供背景音乐(不包括版权音乐的版权费) | D56: 个/pc | E56: 500 | F56: 1 | G56: =E56*F56 -> 500 | H56: Y | I56: 500 | J56: 1 | K56: 500 | L56: Y
A57: Post-event video - Gala dinner （晚宴TB现场花絮视频） | B57: 后期加工及内容剪辑（连夜剪辑） Filming Editing | C57: 视频剪辑，指对母带进行剪辑，按工作时间收取 | D57: 小时/hour | E57: 1000 | F57: 10 | G57: 10000 | H57: Y | I57: 1000 | J57: 10 | K57: 10000 | L57: Y
A58: 整体活动剪辑 | B58: 配乐 | C58: 为视频提供背景音乐(不包括版权音乐的版权费) | D58: 个/pc | E58: 500 | F58: 1 | G58: =E58*F58 -> 500 | H58: Y | I58: 500 | J58: 1 | K58: 500 | L58: Y
A59: 整体活动剪辑 | B59: 后期加工及内容剪辑 Filming Editing | C59: 视频剪辑，指对母带进行剪辑，按工作时间收取 | D59: 小时/hour | E59: 1000 | F59: 10 | G59: 10000 | H59: Y | I59: 1000 | J59: 10 | K59: 10000 | L59: Y
A60: 动态KV | B60: 配乐 | C60: 特效音 | D60: 个/pc | E60: 500 | F60: 1 | G60: 500 | H60: Y | I60: 500 | J60: 1 | K60: 500 | L60: Y
A61: 动态KV | B61: 特效 | C61: 循环动画；粒子特效，光线特效、logo特效等 | D61: 个/pc | E61: 800 | F61: 10 | G61: 8000 | H61: Y | I61: 800 | J61: 10 | K61: 8000 | L61: Y
A62: 采访视频剪辑 | B62: 视频剪辑 | C62: 根据采访视频剪辑，加字幕，背景音乐 | D62: 个/pc | H62: Y | I62: 5000 | J62: 2 | K62: 10000 | L62: Y | M62: 增加项
A63: 视频总计(不含服务费和税费): | G63: =SUM(G13:G61) -> 232500 | K63: =SUM(K13:K62) -> 247500
A64: 其他项费用小计： | G64: 0 | J64: 其他项费用小计： | K64: 0
A65: 第三方费用小计 Total 3rd party cost: | G65: =SUM(G13:G61)-G16-G17-G18-G30-G31-G32-G45-G46-G47-G48-G49-G55-G52 -> 167300 | K65: =SUM(K13:K61)-K16-K17-K18-K30-K31-K32-K45-K46-K47-K48-K49-K55-K52 -> 172300
B66: 服务费 Service Fee | C66: 市场营销公司垫付的零星第三方支出，需要收取在实际发生基础上收取服务费的部分。请注意需要付款时提供第三方发票作为支持文件。 | F66: 0.1 | G66: =G65*F66 -> 16730 | J66: 0.1 | K66: =K65*J66 -> 17230
A67: 不含税总计: | G67: =G63+G66 -> 249230 | K67: =K63+K66 -> 264730
A68: 税金 Tax | F68: 0.06 | G68: =G67*F68 -> 14953.8 | J68: 0.06 | K68: =K67*J68 -> 15883.8

Sheet Sheet3 (hidden)
B2: Plenary session | C2: Creative director
B3: Gala dinner | C3: Associate Creative Director
B4: Team Building | C4: Copywriter
B5: Closing ceremony | C5: 2D designer
B6: For all sessions | C6: Senior Project Manager
C7: Project Manager
C8: 3D designer
C9: Developer
C10: Technicals
